[Event "8th Menchik Memorial 2024"]
[Site "London"]
[Date "2024.03.24"]
[Round "5.5"]
[White "Steil-Antoni, Fiona"]
[Black "Hryshchenko, Kamila"]
[Result "1/2-1/2"]
[ECO "B07"]
[WhiteElo "2154"]
[BlackElo "2186"]
[Annotator "RC"]
[PlyCount "78"]
[EventDate "2024.03.22"]
[EventType "tourn"]
[EventCountry "ENG"]
[SourceTitle "playchess.com"]
[Source "ChessBase"]
[SourceQuality "1"]
[TimeControl "5400+30"]

1. e4 {[%emt 0:02:16]} d6 {[%emt 0:00:15]} 2. d4 {[%emt 0:01:05]} Nf6 {[%emt 0:00:07]} 3. Nc3 {[%emt 0:00:07]} e5 {[%emt 0:00:17]} 4. dxe5 {[%emt 0:00:06]} dxe5 {[%emt 0:00:05]} 5. Qxd8+ {[%emt 0:00:10]} Kxd8 {[%emt 0:00:05]} 6. Bc4 {[%emt 0:00:18]} Bb4 {[%emt 0:01:14]} 7. Bd2 {[%emt 0:00:35]} Be6 {[%emt 0:01:33]} 8. Bxe6 {[%emt 0:00:26]} fxe6 {[%emt 0:00:08]} 9. f3 {[%emt 0:01:25]} Nbd7 {[%emt 0:02:34]} 10. Nh3 {[%emt 0:01:17]} a6 {[%emt 0:01:24]} 11. O-O-O {[%emt 0:01:33]} Bc5 {[%emt 0:04:48]} 12. Rhe1 {[%emt 0:01:16]} Ke7 {[%emt 0:00:51]} 13. Be3 {[%emt 0:02:19]} Bd6 {[%emt 0:01:04]} 14. Nf2 {[%emt 0:00:42]} h6 {[%emt 0:02:11]} 15. Ne2 {[%emt 0:03:57]} Raf8 {[%emt 0:00:55]} 16. c3 {[%emt 0:07:42]} Nh5 {[%emt 0:01:37]} 17. Nd3 {[%emt 0:01:48]} g5 {[%emt 0:03:16]} 18. Rd2 {[%emt 0:06:21]} Rhg8 {[%emt 0:03:46]} 19. c4 {[%emt 0:10:40]} Ke8 {[%emt 0:31:07]} 20. c5 {[%emt 0:11:38]} Be7 {[%emt 0:00:05]} 21. h3 {[%emt 0:05:16]} Nf4 {[%emt 0:08:59]} 22. Nexf4 {[%emt 0:00:21]} gxf4 {[%emt 0:03:24]} 23. Bg1 {[%emt 0:00:16]} a5 {[%emt 0:00:29]} 24. a3 {[%emt 0:00:47]} a4 {[%emt 0:00:56]} 25. Kc2 {[%emt 0:05:45]} Rg5 {[%emt 0:07:53]} 26. Kc3 {[%emt 0:01:53]} Kf7 {[%emt 0:06:57]} 27. Kc4 {[%emt 0:07:57]} Rfg8 {[%emt 0:03:57]} 28. Ree2 {[%emt 0:00:25]} Ra8 {[%emt 0:06:04]} 29. Nxf4 {[%emt 0:13:42]} Nxc5 {[%emt 0:00:55]} 30. Bxc5 {[%emt 0:01:23]} exf4 {[%emt 0:00:15]} 31. Bxe7 {[%emt 0:01:51]} Kxe7 {[%emt 0:00:10]} 32. e5 {[%emt 0:01:37]} Ra5 {[%emt 0:01:51]} 33. Re4 {[%emt 0:02:47]} Rgxe5 {[%emt 0:02:14]} 34. Rxf4 {[%emt 0:00:32]} c6 {[%emt 0:01:08]} 35. Rfd4 {[%emt 0:02:06]} Rec5+ {[%emt 0:01:27]} 36. Kd3 {[%emt 0:00:58]} Rd5 {[%emt 0:00:39]} 37. Ke4 {[%emt 0:01:11]} Re5+ {[%emt 0:02:08]} 38. Kf4 {[%emt 0:00:29]} Rf5+ {[%emt 0:00:52]} 39. Ke3 {[%emt 0:00:56]} Rfe5+ {[%emt 0:02:20]} 1/2-1/2

[Event "8th Menchik Memorial 2024"]
[Site "London"]
[Date "2024.03.24"]
[Round "6.1"]
[White "Arakhamia-Grant, Ketevan"]
[Black "Hryshchenko, Kamila"]
[Result "0-1"]
[ECO "C41"]
[WhiteElo "2290"]
[BlackElo "2186"]
[Annotator "RC"]
[PlyCount "86"]
[EventDate "2024.03.22"]
[EventType "tourn"]
[EventCountry "ENG"]
[SourceTitle "playchess.com"]
[Source "ChessBase"]
[SourceQuality "1"]
[TimeControl "5400+30"]

1. e4 {[%emt 0:02:02]} d6 {[%emt 0:03:21]} 2. d4 {[%emt 0:00:10]} Nf6 {[%emt 0:00:05]} 3. Nc3 {[%emt 0:00:15]} Nbd7 {[%emt 0:00:19]} 4. Nf3 {[%emt 0:00:37]} e5 {[%emt 0:00:06]} 5. Bc4 {[%emt 0:00:23]} h6 {[%emt 0:00:23]} 6. a4 {[%emt 0:01:13]} c6 {[%emt 0:00:52]} 7. Ba2 {[%emt 0:06:09]} Be7 {[%emt 0:00:24]} 8. O-O {[%emt 0:00:18]} Qc7 {[%emt 0:00:16]} 9. Re1 {[%emt 0:01:07]} g5 {[%emt 0:01:33]} 10. Be3 {[%emt 0:03:38]} Nf8 {[%emt 0:02:36]} 11. Nd2 {[%emt 0:07:28]} Ng6 {[%emt 0:03:52]} 12. Nf1 {[%emt 0:00:32]} Nf4 {[%emt 0:03:26]} 13. Ng3 {[%emt 0:35:49]} h5 {[%emt 0:01:18]} 14. f3 {[%emt 0:03:39]} Rg8 {[%emt 0:06:48]} 15. Qd2 {[%emt 0:09:33]} h4 {[%emt 0:08:41]} 16. Nf5 {[%emt 0:00:14]} Bxf5 {[%emt 0:02:13]} 17. exf5 {[%emt 0:00:04]} g4 {[%emt 0:01:23]} 18. Bxf4 {[%emt 0:05:05]} exf4 {[%emt 0:09:33]} 19. Qxf4 {[%emt 0:01:46]} gxf3 {[%emt 0:00:09]} 20. Qxf3 {[%emt 0:00:28]} d5 {[%emt 0:00:23]} 21. Bxd5 {[%emt 0:06:28]} cxd5 {[%emt 0:02:23]} 22. Nxd5 {[%emt 0:00:06]} Nxd5 {[%emt 0:00:22]} 23. Qxd5 {[%emt 0:00:13]} Kf8 {[%emt 0:01:28]} 24. Qe4 {[%emt 0:05:19]} Bf6 {[%emt 0:03:12]} 25. c3 {[%emt 0:01:06]} Rd8 {[%emt 0:05:00]} 26. Re2 {[%emt 0:00:34]} Qc6 {[%emt 0:00:41]} 27. Rae1 {[%emt 0:03:14]} Rg5 {[%emt 0:02:06]} 28. Qxc6 {[%emt 0:04:03]} bxc6 {[%emt 0:00:05]} 29. Rf1 {[%emt 0:00:37]} Rd5 {[%emt 0:00:05]} 30. Ref2 {[%emt 0:01:32]} Ra5 {[%emt 0:00:56]} 31. b3 {[%emt 0:01:18]} c5 {[%emt 0:00:56]} 32. dxc5 {[%emt 0:00:37]} Bxc3 {[%emt 0:00:29]} 33. Rf4 {[%emt 0:00:14]} h3 {[%emt 0:02:51]} 34. g4 {[%emt 0:00:22]} Rxc5 {[%emt 0:00:32]} 35. Re4 {[%emt 0:01:04]} Be5 {[%emt 0:04:13]} 36. b4 {[%emt 0:00:11]} Rc2 {[%emt 0:02:45]} 37. Rf2 {[%emt 0:00:53]} Rc1+ {[%emt 0:00:48]} 38. Rf1 {[%emt 0:00:05]} Bxh2+ {[%emt 0:02:55]} 39. Kf2 {[%emt 0:00:03]} Bg3+ {[%emt 0:00:40]} 40. Ke2 {[%emt 0:00:05]} Rxf1 {[%emt 0:01:17]} 41. Kxf1 {[%emt 0:00:02]} f6 {[%emt 0:01:03]} 42. b5 {[%emt 0:00:47]} Rg7 {[%emt 0:00:28]} 43. Re6 {[%emt 0:02:05]} Be5 {[%emt 0:02:10]} 0-1

[Event "8th Menchik Memorial 2024"]
[Site "London"]
[Date "2024.03.24"]
[Round "6.3"]
[White "Sivanandan, Bodhana"]
[Black "Navrotescu, Andreea"]
[Result "1/2-1/2"]
[ECO "B40"]
[WhiteElo "2088"]
[BlackElo "2200"]
[Annotator "RC"]
[PlyCount "131"]
[EventDate "2024.03.22"]
[EventType "tourn"]
[EventCountry "ENG"]
[SourceTitle "playchess.com"]
[Source "ChessBase"]
[SourceQuality "1"]
[TimeControl "5400+30"]

1. e4 {[%emt 0:10:19]} c5 {[%emt 0:00:07]} 2. Nf3 {[%emt 0:00:24]} e6 {[%emt 0:00:08]} 3. g3 {[%emt 0:00:41]} Nc6 {[%emt 0:00:22]} 4. Bg2 {[%emt 0:00:44]} Nf6 {[%emt 0:00:17]} 5. Nc3 {[%emt 0:01:04]} d5 {[%emt 0:00:14]} 6. exd5 {[%emt 0:01:31]} exd5 {[%emt 0:00:09]} 7. O-O {[%emt 0:01:02]} d4 {[%emt 0:01:16]} 8. Re1+ {[%emt 0:01:07]} Be7 {[%emt 0:00:21]} 9. Ne4 {[%emt 0:00:42]} O-O {[%emt 0:04:24]} 10. d3 {[%emt 0:02:14]} h6 {[%emt 0:01:03]} 11. Nxf6+ {[%emt 0:03:11]} Bxf6 {[%emt 0:01:46]} 12. Bf4 {[%emt 0:01:54]} g5 {[%emt 0:11:36]} 13. Bc1 {[%emt 0:01:57]} Bg4 {[%emt 0:07:00]} 14. h3 {[%emt 0:03:20]} Bh5 {[%emt 0:05:57]} 15. b3 {[%emt 0:09:53]} Qc7 {[%emt 0:05:10]} 16. Bb2 {[%emt 0:05:28]} Rae8 {[%emt 0:07:13]} 17. Qd2 {[%emt 0:05:30]} Qd7 {[%emt 0:01:45]} 18. g4 {[%emt 0:04:47]} Bg6 {[%emt 0:01:57]} 19. Rxe8 {[%emt 0:03:43]} Rxe8 {[%emt 0:00:10]} 20. Re1 {[%emt 0:00:32]} Rxe1+ {[%emt 0:10:02]} 21. Qxe1 {[%emt 0:00:54]} h5 {[%emt 0:12:47]} 22. gxh5 {[%emt 0:07:15]} Bxh5 {[%emt 0:00:03]} 23. Nd2 {[%emt 0:01:54]} Nb4 {[%emt 0:07:56]} 24. Ne4 {[%emt 0:03:24]} Be7 {[%emt 0:00:16]} 25. a3 {[%emt 0:01:29]} Nc6 {[%emt 0:12:10]} 26. Bc1 {[%emt 0:04:44]} f6 {[%emt 0:00:36]} 27. Ng3 {[%emt 0:05:05]} Bf7 {[%emt 0:00:58]} 28. Qe4 {[%emt 0:04:39]} Bf8 {[%emt 0:03:34]} 29. h4 {[%emt 0:02:30]} gxh4 {[%emt 0:03:55]} 30. Qxh4 {[%emt 0:00:12]} Bg7 {[%emt 0:01:20]} 31. Bh6 {[%emt 0:01:15]} Bg6 {[%emt 0:00:33]} 32. Bxg7 {[%emt 0:01:05]} Kxg7 {[%emt 0:00:44]} 33. Bh3 {[%emt 0:00:23]} Qd5 {[%emt 0:00:29]} 34. Qf4 {[%emt 0:03:21]} Qe5 {[%emt 0:00:21]} 35. Qf3 {[%emt 0:01:52]} Kf7 {[%emt 0:00:14]} 36. Bf5 {[%emt 0:00:52]} Bxf5 {[%emt 0:00:17]} 37. Nxf5 {[%emt 0:00:17]} Ke6 {[%emt 0:00:22]} 38. Ng7+ {[%emt 0:00:56]} Kd6 {[%emt 0:00:17]} 39. Nh5 {[%emt 0:00:52]} Ke7 {[%emt 0:00:41]} 40. Nf4 {[%emt 0:00:53]} Kd6 {[%emt 0:00:50]} 41. Nh5 {[%emt 0:01:44]} Ke6 {[%emt 0:01:02]} 42. Ng7+ {[%emt 0:02:45]} Kf7 {[%emt 0:00:27]} 43. Nf5 {[%emt 0:00:37]} Kg6 {[%emt 0:00:31]} 44. Qg4+ {[%emt 0:00:51]} Kf7 {[%emt 0:00:19]} 45. Nh6+ {[%emt 0:00:34]} Ke8 {[%emt 0:00:33]} 46. Qg6+ {[%emt 0:00:34]} Kd7 {[%emt 0:00:19]} 47. Ng4 {[%emt 0:00:28]} Qg5 {[%emt 0:00:53]} 48. Qxg5 {[%emt 0:00:24]} fxg5 {[%emt 0:00:01]} 49. Kg2 {[%emt 0:00:13]} Ke6 {[%emt 0:00:16]} 50. Kg3 {[%emt 0:00:22]} Ne7 {[%emt 0:00:26]} 51. Nh2 {[%emt 0:00:46]} Kf5 {[%emt 0:00:18]} 52. Nf3 {[%emt 0:00:28]} Nd5 {[%emt 0:01:13]} 53. Nd2 {[%emt 0:00:10]} Nc3 {[%emt 0:00:33]} 54. Nc4 {[%emt 0:00:49]} Ke6 {[%emt 0:00:43]} 55. Kg4 {[%emt 0:00:14]} Nd1 {[%emt 0:00:17]} 56. f3 {[%emt 0:00:10]} b5 {[%emt 0:00:27]} 57. Nd2 {[%emt 0:01:05]} Ne3+ {[%emt 0:00:05]} 58. Kxg5 {[%emt 0:00:05]} Nxc2 {[%emt 0:00:09]} 59. f4 {[%emt 0:01:49]} Ne1 {[%emt 0:00:22]} 60. f5+ {[%emt 0:00:06]} Kf7 {[%emt 0:00:09]} 61. Kf4 {[%emt 0:00:11]} Nxd3+ {[%emt 0:00:15]} 62. Ke4 {[%emt 0:00:07]} Nb2 {[%emt 0:01:52]} 63. Kd5 {[%emt 0:00:08]} Nd3 {[%emt 0:00:24]} 64. Ke4 {[%emt 0:00:10]} Nb2 {[%emt 0:00:26]} 65. Kd5 {[%emt 0:00:11]} Nd3 {[%emt 0:00:06]} 66. Ke4 {[%emt 0:00:08]} 1/2-1/2

[Event "8th Menchik Memorial 2024"]
[Site "London"]
[Date "2024.03.24"]
[Round "6.4"]
[White "Subramanian, Anusha"]
[Black "Garcia Martin, Marta"]
[Result "1/2-1/2"]
[ECO "A06"]
[WhiteElo "1997"]
[BlackElo "2356"]
[Annotator "RC"]
[PlyCount "158"]
[EventDate "2024.03.22"]
[EventType "tourn"]
[EventCountry "ENG"]
[SourceTitle "playchess.com"]
[Source "ChessBase"]
[SourceQuality "1"]
[TimeControl "5400+30"]

1. b3 {[%emt 0:00:03]} d5 {[%emt 0:12:45]} 2. Bb2 {[%emt 0:00:06]} Bg4 {[%emt 0:00:26]} 3. Nf3 {[%emt 0:00:26]} Nd7 {[%emt 0:01:08]} 4. d4 {[%emt 0:00:49]} e6 {[%emt 0:05:50]} 5. e3 {[%emt 0:01:09]} Ngf6 {[%emt 0:01:55]} 6. h3 {[%emt 0:01:22]} Bh5 {[%emt 0:02:17]} 7. Be2 {[%emt 0:00:49]} c6 {[%emt 0:05:18]} 8. O-O {[%emt 0:02:56]} Bd6 {[%emt 0:02:52]} 9. Nbd2 {[%emt 0:04:20]} Qe7 {[%emt 0:14:10]} 10. Ne5 {[%emt 0:04:39]} Bxe2 {[%emt 0:00:08]} 11. Qxe2 {[%emt 0:00:07]} Ba3 {[%emt 0:01:21]} 12. Bxa3 {[%emt 0:04:00]} Qxa3 {[%emt 0:00:06]} 13. Ndf3 {[%emt 0:06:20]} O-O {[%emt 0:02:17]} 14. c4 {[%emt 0:00:48]} Nb8 {[%emt 0:05:12]} 15. Nd3 {[%emt 0:08:46]} Na6 {[%emt 0:01:06]} 16. Nfe5 {[%emt 0:01:03]} Ne4 {[%emt 0:01:23]} 17. Qb2 {[%emt 0:04:22]} Qe7 {[%emt 0:01:40]} 18. Rac1 {[%emt 0:03:10]} f6 {[%emt 0:01:34]} 19. Nf3 {[%emt 0:00:30]} Kh8 {[%emt 0:02:44]} 20. Nd2 {[%emt 0:02:58]} Rad8 {[%emt 0:04:08]} 21. cxd5 {[%emt 0:03:28]} exd5 {[%emt 0:08:16]} 22. Nxe4 {[%emt 0:05:43]} dxe4 {[%emt 0:00:16]} 23. Nc5 {[%emt 0:01:31]} Nb4 {[%emt 0:00:13]} 24. Qd2 {[%emt 0:03:22]} Nd5 {[%emt 0:00:13]} 25. f3 {[%emt 0:05:15]} exf3 {[%emt 0:00:30]} 26. Rxf3 {[%emt 0:00:23]} b6 {[%emt 0:03:03]} 27. Nd3 {[%emt 0:03:30]} Rfe8 {[%emt 0:00:39]} 28. Re1 {[%emt 0:06:00]} Qd6 {[%emt 0:06:53]} 29. Nf4 {[%emt 0:04:14]} Nb4 {[%emt 0:07:17]} 30. a3 {[%emt 0:05:37]} Na6 {[%emt 0:00:10]} 31. Qb2 {[%emt 0:00:42]} Re4 {[%emt 0:01:32]} 32. b4 {[%emt 0:01:02]} Rde8 {[%emt 0:01:44]} 33. Qc3 {[%emt 0:01:51]} c5 {[%emt 0:04:39]} 34. bxc5 {[%emt 0:03:14]} bxc5 {[%emt 0:00:05]} 35. d5 {[%emt 0:02:12]} c4 {[%emt 0:02:11]} 36. Ne6 {[%emt 0:02:59]} Nc7 {[%emt 0:01:33]} 37. Qc2 {[%emt 0:02:46]} Re5 {[%emt 0:00:42]} 38. Qxc4 {[%emt 0:02:05]} Nxd5 {[%emt 0:00:30]} 39. Nf4 {[%emt 0:02:37]} Nb6 {[%emt 0:00:37]} 40. Qa6 {[%emt 0:01:02]} R5e7 {[%emt 0:00:21]} 41. h4 {[%emt 0:01:16]} g6 {[%emt 0:00:27]} 42. a4 {[%emt 0:01:15]} Qb4 {[%emt 0:00:17]} 43. Ref1 {[%emt 0:00:19]} f5 {[%emt 0:00:47]} 44. a5 {[%emt 0:00:23]} Qc4 {[%emt 0:00:08]} 45. Qxc4 {[%emt 0:00:33]} Nxc4 {[%emt 0:00:03]} 46. h5 {[%emt 0:00:45]} Nxe3 {[%emt 0:00:43]} 47. Re1 {[%emt 0:00:36]} g5 {[%emt 0:00:13]} 48. Nd3 {[%emt 0:00:19]} f4 {[%emt 0:01:19]} 49. g3 {[%emt 0:00:33]} fxg3 {[%emt 0:00:21]} 50. Rxg3 {[%emt 0:00:18]} h6 {[%emt 0:00:11]} 51. Rf3 {[%emt 0:00:39]} Kg7 {[%emt 0:01:47]} 52. Nb4 {[%emt 0:00:40]} Re4 {[%emt 0:00:00]} 53. Nc6 {[%emt 0:00:33]} a6 {[%emt 0:00:01]} 54. Re2 {[%emt 0:00:22]} g4 {[%emt 0:00:50]} 55. Rg3 {[%emt 0:00:32]} Kf6 {[%emt 0:00:17]} 56. Rb2 {[%emt 0:00:34]} Kg5 {[%emt 0:00:11]} 57. Rf2 {[%emt 0:00:31]} Nf5 {[%emt 0:01:01]} 58. Rc3 {[%emt 0:00:25]} g3 {[%emt 0:00:32]} 59. Rf1 {[%emt 0:00:35]} Kg4 {[%emt 0:00:32]} 60. Rc5 {[%emt 0:00:28]} Nh4 {[%emt 0:00:12]} 61. Rc2 {[%emt 0:00:29]} Nf3+ {[%emt 0:00:48]} 62. Kh1 {[%emt 0:00:31]} Re2 {[%emt 0:00:24]} 63. Rxe2 {[%emt 0:00:34]} Rxe2 {[%emt 0:00:04]} 64. Rxf3 {[%emt 0:00:12]} Kxf3 {[%emt 0:01:05]} 65. Nd4+ {[%emt 0:00:04]} Kf2 {[%emt 0:00:04]} 66. Nxe2 {[%emt 0:00:07]} Kxe2 {[%emt 0:00:54]} 67. Kg2 {[%emt 0:00:04]} Ke3 {[%emt 0:00:04]} 68. Kxg3 {[%emt 0:00:06]} Ke4 {[%emt 0:00:03]} 69. Kg4 {[%emt 0:00:12]} Ke5 {[%emt 0:00:04]} 70. Kg3 {[%emt 0:01:00]} Kf5 {[%emt 0:00:16]} 71. Kh4 {[%emt 0:00:07]} Kf4 {[%emt 0:00:04]} 72. Kh3 {[%emt 0:00:04]} Kg5 {[%emt 0:00:04]} 73. Kg3 {[%emt 0:00:06]} Kxh5 {[%emt 0:00:04]} 74. Kf4 {[%emt 0:00:04]} Kh4 {[%emt 0:02:15]} 75. Kf5 {[%emt 0:01:07]} h5 {[%emt 0:00:30]} 76. Kf4 {[%emt 0:00:07]} Kh3 {[%emt 0:00:06]} 77. Kf3 {[%emt 0:00:33]} h4 {[%emt 0:00:04]} 78. Kf2 {[%emt 0:00:21]} Kg4 {[%emt 0:00:18]} 79. Kg2 {[%emt 0:00:10]} Kf4 {[%emt 0:01:59]} 1/2-1/2

[Event "8th Menchik Memorial 2024"]
[Site "London"]
[Date "2024.03.24"]
[Round "6.5"]
[White "Hunt, Harriet V"]
[Black "Cosman, Andreea-Marioara"]
[Result "0-1"]
[ECO "B50"]
[WhiteElo "2307"]
[BlackElo "2115"]
[Annotator "RC"]
[PlyCount "126"]
[EventDate "2024.03.22"]
[EventType "tourn"]
[EventCountry "ENG"]
[SourceTitle "playchess.com"]
[Source "ChessBase"]
[SourceQuality "1"]
[TimeControl "5400+30"]

1. e4 {[%emt 0:00:02]} c5 {[%emt 0:00:09]} 2. Nf3 {[%emt 0:00:11]} d6 {[%emt 0:00:07]} 3. c3 {[%emt 0:00:16]} Nf6 {[%emt 0:00:30]} 4. h3 {[%emt 0:00:17]} g6 {[%emt 0:04:09]} 5. Bd3 {[%emt 0:00:44]} Bg7 {[%emt 0:00:30]} 6. O-O {[%emt 0:00:20]} O-O {[%emt 0:00:16]} 7. Bc2 {[%emt 0:00:10]} e5 {[%emt 0:02:52]} 8. d3 {[%emt 0:00:25]} Nc6 {[%emt 0:01:04]} 9. a3 {[%emt 0:01:37]} b6 {[%emt 0:11:15]} 10. Be3 {[%emt 0:06:40]} Ba6 {[%emt 0:07:34]} 11. Qc1 {[%emt 0:18:53]} d5 {[%emt 0:02:45]} 12. Rd1 {[%emt 0:03:57]} Qc7 {[%emt 0:05:58]} 13. Re1 {[%emt 0:05:30]} dxe4 {[%emt 0:07:11]} 14. dxe4 {[%emt 0:00:09]} c4 {[%emt 0:00:05]} 15. a4 {[%emt 0:07:46]} Na5 {[%emt 0:02:53]} 16. Nbd2 {[%emt 0:01:34]} Nd7 {[%emt 0:04:38]} 17. Rd1 {[%emt 0:09:53]} Rad8 {[%emt 0:10:10]} 18. Nf1 {[%emt 0:04:38]} Rfe8 {[%emt 0:04:02]} 19. N3h2 {[%emt 0:05:39]} Nc5 {[%emt 0:05:49]} 20. Bxc5 {[%emt 0:01:08]} Qxc5 {[%emt 0:00:05]} 21. Qg5 {[%emt 0:00:34]} Qf8 {[%emt 0:03:10]} 22. Ne3 {[%emt 0:11:10]} Bb7 {[%emt 0:03:01]} 23. Qh4 {[%emt 0:04:20]} f6 {[%emt 0:03:35]} 24. Nd5 {[%emt 0:03:04]} Bxd5 {[%emt 0:06:03]} 25. Rxd5 {[%emt 0:00:15]} Rxd5 {[%emt 0:01:36]} 26. exd5 {[%emt 0:00:06]} f5 {[%emt 0:01:03]} 27. Rd1 {[%emt 0:01:39]} Bf6 {[%emt 0:01:39]} 28. Qg3 {[%emt 0:00:12]} e4 {[%emt 0:00:55]} 29. Nf1 {[%emt 0:01:35]} Nb7 {[%emt 0:03:07]} 30. Qc7 {[%emt 0:03:07]} Nd6 {[%emt 0:00:24]} 31. Qxa7 {[%emt 0:00:25]} f4 {[%emt 0:00:08]} 32. Re1 {[%emt 0:01:32]} e3 {[%emt 0:02:13]} 33. fxe3 {[%emt 0:00:42]} Bh4 {[%emt 0:00:23]} 34. Re2 {[%emt 0:01:16]} f3 {[%emt 0:01:54]} 35. gxf3 {[%emt 0:00:39]} Qxf3 {[%emt 0:00:45]} 36. Rg2 {[%emt 0:04:57]} Rf8 {[%emt 0:00:26]} 37. Bxg6 {[%emt 0:00:23]} Qxf1+ {[%emt 0:00:07]} 38. Kh2 {[%emt 0:00:01]} Bg3+ {[%emt 0:00:09]} 39. Kxg3 {[%emt 0:00:11]} hxg6 {[%emt 0:00:08]} 40. Qd7 {[%emt 0:00:30]} Qf6 {[%emt 0:01:46]} 41. Kh2 {[%emt 0:02:23]} Qe5+ {[%emt 0:02:24]} 42. Kg1 {[%emt 0:00:07]} Qxe3+ {[%emt 0:00:29]} 43. Kh2 {[%emt 0:00:04]} Qe5+ {[%emt 0:00:53]} 44. Kg1 {[%emt 0:00:07]} Rf6 {[%emt 0:01:09]} 45. Qd8+ {[%emt 0:00:23]} Kg7 {[%emt 0:00:40]} 46. Qxb6 {[%emt 0:00:29]} Nf5 {[%emt 0:00:50]} 47. Qa7+ {[%emt 0:01:06]} Rf7 {[%emt 0:00:23]} 48. Qf2 {[%emt 0:01:33]} Ne3 {[%emt 0:00:10]} 49. Qe2 {[%emt 0:00:24]} Rf1+ {[%emt 0:00:40]} 50. Qxf1 {[%emt 0:00:05]} Nxf1 {[%emt 0:00:04]} 51. Kxf1 {[%emt 0:00:06]} Qxd5 {[%emt 0:00:15]} 52. Kf2 {[%emt 0:00:50]} Qa5 {[%emt 0:00:55]} 53. Rg4 {[%emt 0:00:51]} Qxa4 {[%emt 0:00:17]} 54. Kg3 {[%emt 0:00:10]} Qc2 {[%emt 0:01:26]} 55. h4 {[%emt 0:00:47]} Kh6 {[%emt 0:00:24]} 56. Rd4 {[%emt 0:00:17]} Qc1 {[%emt 0:01:22]} 57. Kf3 {[%emt 0:00:48]} Kh5 {[%emt 0:00:35]} 58. Kg3 {[%emt 0:01:08]} Qe3+ {[%emt 0:00:29]} 59. Kg2 {[%emt 0:00:11]} Qe2+ {[%emt 0:00:31]} 60. Kg3 {[%emt 0:00:10]} Qxb2 {[%emt 0:00:27]} 61. Rxc4 {[%emt 0:00:14]} Qb8+ {[%emt 0:00:38]} 62. Kf3 {[%emt 0:01:23]} Qb5 {[%emt 0:00:43]} 63. Rd4 {[%emt 0:01:15]} Qc6+ {[%emt 0:00:32]} 0-1

[Event "8th Menchik Memorial 2024"]
[Site "London"]
[Date "2024.03.25"]
[Round "7.1"]
[White "Cosman, Andreea-Marioara"]
[Black "Arakhamia-Grant, Ketevan"]
[Result "1/2-1/2"]
[ECO "B36"]
[WhiteElo "2115"]
[BlackElo "2290"]
[Annotator "RC"]
[PlyCount "64"]
[EventDate "2024.03.22"]
[EventType "tourn"]
[EventCountry "ENG"]
[SourceTitle "playchess.com"]
[Source "ChessBase"]
[SourceQuality "1"]
[TimeControl "5400+30"]

1. d4 {[%emt 0:00:03]} Nf6 {[%emt 0:06:24]} 2. c4 {[%emt 0:00:07]} c5 {[%emt 0:00:45]} 3. Nf3 {[%emt 0:00:14]} g6 {[%emt 0:03:31]} 4. Nc3 {[%emt 0:00:32]} cxd4 {[%emt 0:02:46]} 5. Nxd4 {[%emt 0:00:08]} Nc6 {[%emt 0:00:08]} 6. e4 {[%emt 0:00:13]} Nxd4 {[%emt 0:01:26]} 7. Qxd4 {[%emt 0:00:08]} d6 {[%emt 0:00:02]} 8. f3 {[%emt 0:02:23]} Bg7 {[%emt 0:00:34]} 9. Be3 {[%emt 0:00:09]} O-O {[%emt 0:00:08]} 10. Qd2 {[%emt 0:00:08]} Be6 {[%emt 0:05:43]} 11. Rc1 {[%emt 0:01:05]} a6 {[%emt 0:10:15]} 12. Be2 {[%emt 0:06:52]} Qa5 {[%emt 0:11:29]} 13. Nd5 {[%emt 0:13:55]} Qxd2+ {[%emt 0:02:31]} 14. Kxd2 {[%emt 0:00:18]} Bxd5 {[%emt 0:00:32]} 15. cxd5 {[%emt 0:05:01]} Rfc8 {[%emt 0:02:16]} 16. Rxc8+ {[%emt 0:01:45]} Rxc8 {[%emt 0:00:04]} 17. Rc1 {[%emt 0:00:19]} Rxc1 {[%emt 0:06:20]} 18. Kxc1 {[%emt 0:00:06]} Kf8 {[%emt 0:00:46]} 19. b4 {[%emt 0:03:39]} e6 {[%emt 0:09:42]} 20. dxe6 {[%emt 0:07:52]} fxe6 {[%emt 0:00:04]} 21. b5 {[%emt 0:03:03]} axb5 {[%emt 0:00:33]} 22. Bxb5 {[%emt 0:00:07]} Ke7 {[%emt 0:00:30]} 23. Bg5 {[%emt 0:08:10]} h6 {[%emt 0:01:12]} 24. Bxf6+ {[%emt 0:00:06]} Bxf6 {[%emt 0:00:08]} 25. g4 {[%emt 0:01:35]} Be5 {[%emt 0:06:09]} 26. h3 {[%emt 0:00:08]} h5 {[%emt 0:00:34]} 27. gxh5 {[%emt 0:01:56]} gxh5 {[%emt 0:00:05]} 28. a4 {[%emt 0:00:48]} b6 {[%emt 0:04:14]} 29. Kd2 {[%emt 0:00:15]} Bf4+ {[%emt 0:02:38]} 30. Kd3 {[%emt 0:00:10]} h4 {[%emt 0:00:49]} 31. Kd4 {[%emt 0:00:58]} Kf6 {[%emt 0:00:41]} 32. Bd7 {[%emt 0:00:51]} Bc1 {[%emt 0:00:20]} 1/2-1/2